[Event "Early-Titled-Tuesday-Blitz-April-02-2024"]
[Site "Chess.com"]
[Date "2024.04.02"]
[Round "1"]
[White "Aureliano-Buendia"]
[Black "MyDream003"]
[Result "0-1"]
[WhiteElo "2482"]
[BlackElo "2810"]
[TimeControl "180+1"]
[EndTime "8:09:18 PDT"]
[Termination "MyDream003 won on time"]

1. d4 {[%clk 0:02:54.6]} 1... d5 {[%clk 0:02:58.9]} 2. Nf3 {[%clk 0:02:53]} 2...
Nf6 {[%clk 0:02:56.7]} 3. Bf4 {[%clk 0:02:51.6]} 3... Bf5 {[%clk 0:02:55.6]} 4.
e3 {[%clk 0:02:48.6]} 4... e6 {[%clk 0:02:50.6]} 5. c4 {[%clk 0:02:46.4]} 5...
Bd6 {[%clk 0:02:48.4]} 6. Bg3 {[%clk 0:02:40.8]} 6... O-O {[%clk 0:02:47.5]} 7.
Nc3 {[%clk 0:02:37.1]} 7... c6 {[%clk 0:02:47.1]} 8. Be2 {[%clk 0:02:32.4]} 8...
h6 {[%clk 0:02:44.7]} 9. c5 {[%clk 0:02:30.2]} 9... Bxg3 {[%clk 0:02:43.4]} 10.
hxg3 {[%clk 0:02:29.9]} 10... Nbd7 {[%clk 0:02:43.7]} 11. b4 {[%clk 0:02:26.5]}
11... Qc7 {[%clk 0:02:42]} 12. a4 {[%clk 0:02:23.3]} 12... e5 {[%clk 0:02:41.1]}
13. Kf1 {[%clk 0:02:19]} 13... Rfe8 {[%clk 0:02:38.4]} 14. b5 {[%clk 0:02:15.8]}
14... Bh7 {[%clk 0:02:32.5]} 15. Qb3 {[%clk 0:02:02.9]} 15... Ng4 {[%clk
0:02:23.6]} 16. Nd2 {[%clk 0:01:58.2]} 16... Ndf6 {[%clk 0:02:21]} 17. a5 {[%clk
0:01:52.6]} 17... exd4 {[%clk 0:02:18.9]} 18. exd4 {[%clk 0:01:51.4]} 18... Re7
{[%clk 0:02:03]} 19. Nd1 {[%clk 0:01:41.6]} 19... Rae8 {[%clk 0:02:01.4]} 20.
Nc3 {[%clk 0:01:34.3]} 20... Qc8 {[%clk 0:01:33.7]} 21. Nf3 {[%clk 0:01:25.8]}
21... Ne4 {[%clk 0:01:19.1]} 22. Nxe4 {[%clk 0:01:22.9]} 22... dxe4 {[%clk
0:01:20]} 23. Nh2 {[%clk 0:01:12.7]} 23... Nxh2+ {[%clk 0:01:15.5]} 24. Rxh2
{[%clk 0:01:11.7]} 24... e3 {[%clk 0:01:16.4]} 25. f3 {[%clk 0:01:11]} 25... Qc7
{[%clk 0:01:15.8]} 26. Rh3 {[%clk 0:01:09.5]} 26... Qd7 {[%clk 0:01:13.6]} 27.
Qc3 {[%clk 0:01:04.7]} 27... cxb5 {[%clk 0:01:12.7]} 28. a6 {[%clk 0:00:56.9]}
28... bxa6 {[%clk 0:01:03.8]} 29. c6 {[%clk 0:00:55.7]} 29... Qd6 {[%clk
0:01:00.4]} 30. Rxa6 {[%clk 0:00:53.3]} 30... b4 {[%clk 0:01:00.7]} 31. Qc4
{[%clk 0:00:47.1]} 31... Rc7 {[%clk 0:00:51.5]} 32. f4 {[%clk 0:00:38.7]} 32...
Rb8 {[%clk 0:00:48]} 33. Rh5 {[%clk 0:00:33.2]} 33... Rbc8 {[%clk 0:00:39.5]}
34. Rc5 {[%clk 0:00:32.1]} 34... b3 {[%clk 0:00:35.5]} 35. Qxb3 {[%clk
0:00:25.8]} 35... Qxd4 {[%clk 0:00:35.7]} 36. Qc3 {[%clk 0:00:26.1]} 36... Qe4
{[%clk 0:00:33.2]} 37. Kg1 {[%clk 0:00:17.5]} 37... Bg6 {[%clk 0:00:30.1]} 38.
Bf3 {[%clk 0:00:14.1]} 38... Qb1+ {[%clk 0:00:20.6]} 39. Kh2 {[%clk 0:00:14.5]}
39... Qd3 {[%clk 0:00:15.8]} 40. Ra1 {[%clk 0:00:14.5]} 40... e2 {[%clk
0:00:11.9]} 41. Re1 {[%clk 0:00:11.5]} 41... Re8 {[%clk 0:00:10.6]} 42. Qa5
{[%clk 0:00:08.1]} 42... Ree7 {[%clk 0:00:09]} 43. Qb4 {[%clk 0:00:06.4]} 43...
Rc8 {[%clk 0:00:03.6]} 44. Rc3 {[%clk 0:00:06.7]} 44... Qd8 {[%clk 0:00:03.4]}
45. Rc5 {[%clk 0:00:06.7]} 45... Qe8 {[%clk 0:00:02.8]} 46. Qc3 {[%clk
0:00:07.1]} 46... Kh7 {[%clk 0:00:03.2]} 47. Qc4 {[%clk 0:00:06.6]} 47... f5
{[%clk 0:00:02.9]} 48. Rxe2 {[%clk 0:00:06.7]} 48... Rxe2 {[%clk 0:00:01.6]} 49.
Qxe2 {[%clk 0:00:07.6]} 49... Bf7 {[%clk 0:00:02]} 50. Qxe8 {[%clk 0:00:03.8]}
50... Rxe8 {[%clk 0:00:02.9]} 51. c7 {[%clk 0:00:04.4]} 51... Be6 {[%clk
0:00:03.5]} 52. Bb7 {[%clk 0:00:04.4]} 52... Bc8 {[%clk 0:00:03.4]} 53. Bxc8
{[%clk 0:00:04.8]} 53... Rxc8 {[%clk 0:00:04.3]} 54. Rc6 {[%clk 0:00:05.5]}
54... a5 {[%clk 0:00:04.4]} 55. Rc5 {[%clk 0:00:06.4]} 55... a4 {[%clk
0:00:04.8]} 56. Ra5 {[%clk 0:00:06.1]} 56... Rxc7 {[%clk 0:00:04.7]} 57. Rxa4
{[%clk 0:00:06.6]} 57... Kg6 {[%clk 0:00:05.6]} 58. Ra5 {[%clk 0:00:07]} 58...
Rf7 {[%clk 0:00:05.3]} 59. Ra6+ {[%clk 0:00:07.9]} 59... Kh5 {[%clk 0:00:05.4]}
60. Ra5 {[%clk 0:00:08.8]} 60... Kg4 {[%clk 0:00:05.4]} 61. Ra3 {[%clk
0:00:09.7]} 61... Re7 {[%clk 0:00:05]} 62. Ra6 {[%clk 0:00:08]} 62... Kh5 {[%clk
0:00:03.9]} 63. Ra5 {[%clk 0:00:07.7]} 63... Rf7 {[%clk 0:00:04.3]} 64. Ra6
{[%clk 0:00:07.5]} 64... Kg4 {[%clk 0:00:03.8]} 65. Rg6+ {[%clk 0:00:06.7]}
65... Kh5 {[%clk 0:00:04.3]} 66. Ra6 {[%clk 0:00:07.6]} 66... g6 {[%clk
0:00:04.3]} 67. Ra5 {[%clk 0:00:07.4]} 67... Kg4 {[%clk 0:00:04.3]} 68. Ra6
{[%clk 0:00:07.8]} 68... Rg7 {[%clk 0:00:04.9]} 69. Rb6 {[%clk 0:00:07.2]} 69...
Rg8 {[%clk 0:00:05.4]} 70. Ra6 {[%clk 0:00:07.2]} 70... Rg7 {[%clk 0:00:05.1]}
71. Rb6 {[%clk 0:00:07.2]} 71... h5 {[%clk 0:00:05.6]} 72. Ra6 {[%clk
0:00:06.8]} 72... Rg8 {[%clk 0:00:06.2]} 73. Ra4 {[%clk 0:00:05.1]} 73... Rh8
{[%clk 0:00:05.2]} 74. Kg1 {[%clk 0:00:03.8]} 74... h4 {[%clk 0:00:04.8]} 75.
gxh4 {[%clk 0:00:02.5]} 75... Kg3 {[%clk 0:00:05.1]} 0-1

[Event "Early-Titled-Tuesday-Blitz-April-02-2024"]
[Site "Chess.com"]
[Date "2024.04.02"]
[Round "1"]
[White "Larina_Maria"]
[Black "MKlose11"]
[Result "1-0"]
[WhiteElo "2317"]
[BlackElo "2607"]
[TimeControl "180+1"]
[EndTime "8:09:18 PDT"]
[Termination "Larina_Maria won by resignation"]

1. e4 {[%clk 0:03:00.9]} 1... e6 {[%clk 0:02:53.8]} 2. Nf3 {[%clk 0:03:00.4]}
2... d5 {[%clk 0:02:54.7]} 3. e5 {[%clk 0:02:59.7]} 3... c5 {[%clk 0:02:41.6]}
4. b4 {[%clk 0:02:59.4]} 4... b6 {[%clk 0:02:42.5]} 5. a3 {[%clk 0:02:50.9]}
5... Ne7 {[%clk 0:02:38]} 6. c3 {[%clk 0:02:48.9]} 6... d4 {[%clk 0:02:28.6]} 7.
cxd4 {[%clk 0:02:42.7]} 7... cxd4 {[%clk 0:02:28.2]} 8. Bb2 {[%clk 0:02:43.4]}
8... Nf5 {[%clk 0:02:26.2]} 9. g4 {[%clk 0:02:40.5]} 9... Nh4 {[%clk 0:02:26]}
10. Nxh4 {[%clk 0:02:36.8]} 10... Bb7 {[%clk 0:02:17.4]} 11. Nf3 {[%clk
0:02:28.7]} 11... Nc6 {[%clk 0:02:13.9]} 12. Bg2 {[%clk 0:02:26.9]} 12... Be7
{[%clk 0:02:13.7]} 13. O-O {[%clk 0:02:24.9]} 13... h5 {[%clk 0:02:13.8]} 14. g5
{[%clk 0:02:23.7]} 14... Bxg5 {[%clk 0:02:11.4]} 15. Nxg5 {[%clk 0:02:24.6]}
15... Qxg5 {[%clk 0:02:11.6]} 16. f4 {[%clk 0:02:24.5]} 16... Qg6 {[%clk
0:02:09.4]} 17. Kh1 {[%clk 0:02:20.4]} 17... h4 {[%clk 0:02:06.8]} 18. d3 {[%clk
0:02:17.2]} 18... h3 {[%clk 0:02:06.1]} 19. Be4 {[%clk 0:02:17.2]} 19... Qh6
{[%clk 0:01:47.7]} 20. Qf3 {[%clk 0:02:16.6]} 20... Rc8 {[%clk 0:01:42.7]} 21.
b5 {[%clk 0:02:15.3]} 21... Na5 {[%clk 0:01:38.2]} 22. Bxb7 {[%clk 0:02:14.6]}
22... Nxb7 {[%clk 0:01:38]} 23. Qxb7 {[%clk 0:02:13.4]} 23... O-O {[%clk
0:01:38]} 24. Bxd4 {[%clk 0:01:57.7]} 24... Rc2 {[%clk 0:01:33.7]} 25. Qf3
{[%clk 0:01:51.5]} 25... Rd8 {[%clk 0:01:28]} 26. Bc3 {[%clk 0:01:31.5]} 26...
Qg6 {[%clk 0:01:27.1]} 27. Rd1 {[%clk 0:01:22.3]} 27... Rd5 {[%clk 0:01:04.9]}
28. a4 {[%clk 0:01:20.2]} 28... Qf5 {[%clk 0:01:01.2]} 29. d4 {[%clk 0:01:17.5]}
29... g5 {[%clk 0:00:58.6]} 30. Rg1 {[%clk 0:01:10.4]} 30... Rg2 {[%clk
0:00:58.3]} 31. Nd2 {[%clk 0:01:05.3]} 31... g4 {[%clk 0:00:56.9]} 32. Rxg2
{[%clk 0:01:00.8]} 32... hxg2+ {[%clk 0:00:55.3]} 33. Qxg2 {[%clk 0:01:01.7]}
33... Kf8 {[%clk 0:00:52.1]} 34. Rg1 {[%clk 0:00:57.7]} 34... Qd3 {[%clk
0:00:52.1]} 35. Qxg4 {[%clk 0:00:54.9]} 35... Qxc3 {[%clk 0:00:52]} 36. Ne4
{[%clk 0:00:50.4]} 36... Qxd4 {[%clk 0:00:48.4]} 37. Qg7+ {[%clk 0:00:49.3]}
37... Ke7 {[%clk 0:00:46.2]} 38. Qg5+ {[%clk 0:00:46.2]} 38... Kf8 {[%clk
0:00:41]} 39. Nd6 {[%clk 0:00:41.4]} 39... Rxd6 {[%clk 0:00:26.7]} 40. Qg8+
{[%clk 0:00:39.1]} 40... Ke7 {[%clk 0:00:26.5]} 41. exd6+ {[%clk 0:00:40]} 41...
Qxd6 {[%clk 0:00:26.1]} 42. Qg5+ {[%clk 0:00:38.3]} 42... Ke8 {[%clk 0:00:24.5]}
43. Qe5 {[%clk 0:00:35.8]} 43... Qd3 {[%clk 0:00:21.8]} 44. Re1 {[%clk
0:00:27.4]} 44... Qf3+ {[%clk 0:00:20.5]} 45. Kg1 {[%clk 0:00:27.2]} 45... Qg4+
{[%clk 0:00:21.4]} 46. Kf2 {[%clk 0:00:26.6]} 46... Qh4+ {[%clk 0:00:21.7]} 47.
Kf3 {[%clk 0:00:26.8]} 47... Qh3+ {[%clk 0:00:21.9]} 48. Ke4 {[%clk 0:00:23.7]}
48... Qxh2 {[%clk 0:00:21.7]} 49. Qb8+ {[%clk 0:00:22.8]} 49... Ke7 {[%clk
0:00:21.4]} 50. Qxa7+ {[%clk 0:00:23.5]} 50... Kf6 {[%clk 0:00:21.1]} 51. Re3
{[%clk 0:00:22.2]} 51... Qc2+ {[%clk 0:00:20.6]} 52. Rd3 {[%clk 0:00:22]} 52...
Qe2+ {[%clk 0:00:20.4]} 53. Kd4 {[%clk 0:00:22.7]} 53... Qb2+ {[%clk 0:00:20.3]}
54. Kc4 {[%clk 0:00:21.8]} 54... Qc2+ {[%clk 0:00:20.7]} 55. Rc3 {[%clk
0:00:22.1]} 55... Qe2+ {[%clk 0:00:20]} 56. Kb4 {[%clk 0:00:21.8]} 56... Qb2+
{[%clk 0:00:19.9]} 57. Rb3 {[%clk 0:00:22.4]} 57... Qd2+ {[%clk 0:00:20]} 58.
Ka3 {[%clk 0:00:23.1]} 58... Qc1+ {[%clk 0:00:20.1]} 59. Rb2 {[%clk 0:00:22.8]}
59... Qc3+ {[%clk 0:00:20.3]} 60. Ka2 {[%clk 0:00:23.5]} 60... Qc4+ {[%clk
0:00:20.9]} 61. Kb1 {[%clk 0:00:23]} 61... Qd3+ {[%clk 0:00:21.2]} 62. Rc2
{[%clk 0:00:23]} 62... Qb3+ {[%clk 0:00:21.3]} 63. Kc1 {[%clk 0:00:23.4]} 63...
Qe3+ {[%clk 0:00:21.5]} 64. Rd2 {[%clk 0:00:24]} 64... Qc3+ {[%clk 0:00:21.7]}
65. Kd1 {[%clk 0:00:24.1]} 65... Qf3+ {[%clk 0:00:21.6]} 66. Re2 {[%clk
0:00:24.5]} 66... Qd3+ {[%clk 0:00:21.8]} 67. Ke1 {[%clk 0:00:24.9]} 67... Qg3+
{[%clk 0:00:21.6]} 68. Rf2 {[%clk 0:00:25.3]} 68... Qe3+ {[%clk 0:00:21.5]} 69.
Kf1 {[%clk 0:00:25.5]} 69... Qh3+ {[%clk 0:00:20.7]} 70. Ke2 {[%clk 0:00:26.1]}
70... Qg4+ {[%clk 0:00:21.1]} 71. Ke3 {[%clk 0:00:26.3]} 71... Qg3+ {[%clk
0:00:21.5]} 72. Rf3 {[%clk 0:00:26.9]} 72... Qe1+ {[%clk 0:00:21.5]} 73. Kd4
{[%clk 0:00:23.3]} 73... Qb4+ {[%clk 0:00:20.7]} 74. Ke3 {[%clk 0:00:22.3]}
74... Qe1+ {[%clk 0:00:20.8]} 75. Kd4 {[%clk 0:00:20.5]} 75... Qb4+ {[%clk
0:00:19.8]} 76. Kd3 {[%clk 0:00:20.6]} 76... Qb3+ {[%clk 0:00:19.9]} 77. Ke2
{[%clk 0:00:20.6]} 77... Qc2+ {[%clk 0:00:20.3]} 78. Ke3 {[%clk 0:00:21]} 78...
Qc3+ {[%clk 0:00:16.6]} 79. Kf2 {[%clk 0:00:21.3]} 79... Qc2+ {[%clk 0:00:15.5]}
80. Kg3 {[%clk 0:00:21.8]} 80... Qg6+ {[%clk 0:00:16]} 81. Kf2 {[%clk
0:00:20.5]} 81... Qc2+ {[%clk 0:00:15.9]} 82. Kg3 {[%clk 0:00:20.7]} 82... Qg6+
{[%clk 0:00:15.7]} 83. Kh2 {[%clk 0:00:21.3]} 83... Qh5+ {[%clk 0:00:13.9]} 84.
Kg2 {[%clk 0:00:22]} 84... Qg6+ {[%clk 0:00:12.5]} 85. Rg3 {[%clk 0:00:22.3]}
85... Qe4+ {[%clk 0:00:11.8]} 86. Kh3 {[%clk 0:00:22.4]} 86... Qh7+ {[%clk
0:00:11.6]} 87. Kg2 {[%clk 0:00:22.2]} 87... Qe4+ {[%clk 0:00:11.8]} 88. Kh3
{[%clk 0:00:22.3]} 88... Qh7+ {[%clk 0:00:11.9]} 89. Kg4 {[%clk 0:00:21.8]}
89... Qf5+ {[%clk 0:00:10.1]} 90. Kh4 {[%clk 0:00:22.2]} 90... Qd3 {[%clk
0:00:11]} 91. Rxd3 {[%clk 0:00:21.5]} 1-0

[Event "Early-Titled-Tuesday-Blitz-April-02-2024"]
[Site "Chess.com"]
[Date "2024.04.02"]
[Round "1"]
[White "Der_Balak_3Halak"]
[Black "SipkeErnst"]
[Result "0-1"]
[WhiteElo "2381"]
[BlackElo "2678"]
[TimeControl "180+1"]
[EndTime "8:09:19 PDT"]
[Termination "SipkeErnst won by resignation"]

1. e4 {[%clk 0:02:59.1]} 1... e5 {[%clk 0:02:59.8]} 2. Nf3 {[%clk 0:02:58.8]}
2... Nc6 {[%clk 0:03:00.2]} 3. Bb5 {[%clk 0:02:57.5]} 3... Nf6 {[%clk
0:03:00.2]} 4. Qe2 {[%clk 0:02:56.4]} 4... Bc5 {[%clk 0:02:58]} 5. c3 {[%clk
0:02:54.9]} 5... O-O {[%clk 0:02:57.5]} 6. h3 {[%clk 0:02:54.7]} 6... d5 {[%clk
0:02:53.2]} 7. d3 {[%clk 0:02:51.3]} 7... dxe4 {[%clk 0:02:39.3]} 8. dxe4 {[%clk
0:02:52.2]} 8... Qe7 {[%clk 0:02:39.4]} 9. O-O {[%clk 0:02:47.9]} 9... Nd8
{[%clk 0:02:37.8]} 10. Be3 {[%clk 0:02:33.2]} 10... Nh5 {[%clk 0:02:30]} 11.
Nbd2 {[%clk 0:02:24.9]} 11... Ne6 {[%clk 0:02:29.1]} 12. Nb3 {[%clk 0:01:54.3]}
12... Bxe3 {[%clk 0:02:28.1]} 13. Qxe3 {[%clk 0:01:52.3]} 13... Nef4 {[%clk
0:02:27.4]} 14. Rad1 {[%clk 0:01:47.1]} 14... Qf6 {[%clk 0:02:23.1]} 15. Bd7
{[%clk 0:01:31.9]} 15... Nxg2 {[%clk 0:02:04]} 16. Kxg2 {[%clk 0:01:22.7]} 16...
Bxd7 {[%clk 0:02:00.8]} 17. Rxd7 {[%clk 0:01:16]} 17... Nf4+ {[%clk 0:02:01.4]}
18. Kh2 {[%clk 0:01:10.2]} 18... Qe6 {[%clk 0:02:00.6]} 19. Nxe5 {[%clk
0:01:10.9]} 19... Qxe5 {[%clk 0:01:52.7]} 20. Qg3 {[%clk 0:01:09.8]} 20... Qb5
{[%clk 0:01:23.2]} 21. Rdd1 {[%clk 0:00:44.8]} 21... Ne6 {[%clk 0:01:21.7]} 22.
Rg1 {[%clk 0:00:40]} 22... g6 {[%clk 0:01:11.4]} 23. Rd2 {[%clk 0:00:31.4]}
23... Rad8 {[%clk 0:01:09.7]} 24. Nd4 {[%clk 0:00:29.9]} 24... Qc4 {[%clk
0:01:04.6]} 25. b3 {[%clk 0:00:24]} 25... Qa6 {[%clk 0:01:04.7]} 26. Rgd1 {[%clk
0:00:23.3]} 26... Nc5 {[%clk 0:01:02.5]} 27. Qe3 {[%clk 0:00:20.2]} 27... Rde8
{[%clk 0:00:59.5]} 28. f3 {[%clk 0:00:20.6]} 28... f5 {[%clk 0:00:58.8]} 29. e5
{[%clk 0:00:18.9]} 29... f4 {[%clk 0:00:58.7]} 30. Qe2 {[%clk 0:00:17.9]} 30...
Qb6 {[%clk 0:00:52.6]} 31. Qc4+ {[%clk 0:00:17.8]} 31... Kh8 {[%clk 0:00:52.4]}
32. Re2 {[%clk 0:00:17.3]} 32... Re7 {[%clk 0:00:50.2]} 33. Rde1 {[%clk
0:00:17.6]} 33... Rfe8 {[%clk 0:00:50.2]} 34. e6 {[%clk 0:00:18.1]} 34... Qd6
{[%clk 0:00:47.7]} 35. b4 {[%clk 0:00:17.5]} 35... Na4 {[%clk 0:00:47.5]} 36.
Nb5 {[%clk 0:00:16]} 36... Qb6 {[%clk 0:00:38.8]} 37. Nd4 {[%clk 0:00:12.7]}
37... a6 {[%clk 0:00:35.7]} 38. Qd5 {[%clk 0:00:12.6]} 38... Nxc3 {[%clk
0:00:33.3]} 39. Qe5+ {[%clk 0:00:12.4]} 39... Kg8 {[%clk 0:00:33.8]} 40. Rc2
{[%clk 0:00:11]} 40... Qxb4 {[%clk 0:00:29.1]} 41. Nc6 {[%clk 0:00:06.8]} 41...
bxc6 {[%clk 0:00:26.8]} 42. Qxc3 {[%clk 0:00:06.3]} 42... Qxc3 {[%clk 0:00:26]}
43. Rxc3 {[%clk 0:00:07.2]} 43... Rxe6 {[%clk 0:00:26.6]} 44. Rec1 {[%clk
0:00:07.1]} 44... Re2+ {[%clk 0:00:25.2]} 45. Kg1 {[%clk 0:00:08]} 45... R8e6
{[%clk 0:00:23.7]} 46. Rxc6 {[%clk 0:00:07.5]} 46... Rxc6 {[%clk 0:00:23.6]} 47.
Rxc6 {[%clk 0:00:08.4]} 47... Rxa2 {[%clk 0:00:23.3]} 48. Rxc7 {[%clk 0:00:09]}
48... h6 {[%clk 0:00:18.5]} 49. h4 {[%clk 0:00:08.3]} 49... Ra5 {[%clk
0:00:17.6]} 50. Rc4 {[%clk 0:00:07.8]} 50... Rf5 {[%clk 0:00:17.6]} 51. Rc6
{[%clk 0:00:06.6]} 51... a5 {[%clk 0:00:12.6]} 52. Rxg6+ {[%clk 0:00:06.6]}
52... Kh7 {[%clk 0:00:13.2]} 53. Ra6 {[%clk 0:00:06]} 53... h5 {[%clk
0:00:13.6]} 54. Kf2 {[%clk 0:00:06.4]} 54... Kg7 {[%clk 0:00:12.3]} 55. Ke2
{[%clk 0:00:06.7]} 55... Re5+ {[%clk 0:00:12.3]} 56. Kf2 {[%clk 0:00:05.6]}
56... Rb5 {[%clk 0:00:11.9]} 57. Rd6 {[%clk 0:00:04]} 57... Rb4 {[%clk
0:00:10.2]} 58. Kf1 {[%clk 0:00:04.6]} 58... a4 {[%clk 0:00:10.5]} 59. Ra6
{[%clk 0:00:05.1]} 59... Kf7 {[%clk 0:00:10.2]} 60. Kf2 {[%clk 0:00:04.6]} 60...
Ke7 {[%clk 0:00:10]} 61. Ke2 {[%clk 0:00:05.4]} 61... Kd7 {[%clk 0:00:10.2]} 62.
Kd3 {[%clk 0:00:06.1]} 62... Kc7 {[%clk 0:00:10.4]} 63. Ra5 {[%clk 0:00:06.1]}
63... Kb6 {[%clk 0:00:09.9]} 64. Rxh5 {[%clk 0:00:06.7]} 64... a3 {[%clk
0:00:09.6]} 65. Rh8 {[%clk 0:00:07.2]} 65... Ra4 {[%clk 0:00:09.7]} 66. Rb8+
{[%clk 0:00:07]} 66... Kc5 {[%clk 0:00:09.7]} 67. Rb1 {[%clk 0:00:07.9]} 67...
a2 {[%clk 0:00:09.8]} 68. Ra1 {[%clk 0:00:08.5]} 68... Kb4 {[%clk 0:00:10.3]}
69. Ke4 {[%clk 0:00:09]} 69... Kb3+ {[%clk 0:00:09.9]} 70. Kf5 {[%clk
0:00:09.6]} 70... Kb2 {[%clk 0:00:10.2]} 71. Rh1 {[%clk 0:00:09.5]} 71... a1=Q
{[%clk 0:00:09.1]} 72. Rxa1 {[%clk 0:00:10.2]} 72... Rxa1 {[%clk 0:00:09.5]} 73.
h5 {[%clk 0:00:10.1]} 73... Kc3 {[%clk 0:00:09.6]} 74. Kxf4 {[%clk 0:00:10.3]}
74... Kd4 {[%clk 0:00:09.6]} 75. h6 {[%clk 0:00:09.3]} 75... Kd5 {[%clk
0:00:08.3]} 76. Kf5 {[%clk 0:00:09.4]} 76... Kd6 {[%clk 0:00:08.6]} 77. h7
{[%clk 0:00:06]} 77... Rh1 {[%clk 0:00:08.2]} 78. Kg6 {[%clk 0:00:06.5]} 78...
Ke7 {[%clk 0:00:08.7]} 79. Kg7 {[%clk 0:00:06]} 79... Rg1+ {[%clk 0:00:09.1]}
80. Kh6 {[%clk 0:00:05.3]} 80... Kf7 {[%clk 0:00:09.1]} 81. h8=Q {[%clk
0:00:03.5]} 81... Rh1+ {[%clk 0:00:08.2]} 82. Kg5 {[%clk 0:00:04.4]} 82... Rxh8
{[%clk 0:00:08.4]} 83. Kf5 {[%clk 0:00:05.3]} 83... Rh6 {[%clk 0:00:08.6]} 84.
Ke5 {[%clk 0:00:06.2]} 84... Rf6 {[%clk 0:00:08.9]} 85. f4 {[%clk 0:00:06.8]}
85... Kg6 {[%clk 0:00:09.1]} 86. Ke4 {[%clk 0:00:07.2]} 86... Rf5 {[%clk
0:00:09.3]} 87. Ke3 {[%clk 0:00:08.1]} 87... Kh5 {[%clk 0:00:09.3]} 88. Kf3
{[%clk 0:00:09]} 88... Kh4 {[%clk 0:00:09.7]} 89. Ke4 {[%clk 0:00:09.5]} 89...
Kg4 {[%clk 0:00:10.2]} 90. Ke3 {[%clk 0:00:09.9]} 90... Rxf4 {[%clk 0:00:10.7]}
91. Kd3 {[%clk 0:00:10.8]} 91... Kf3 {[%clk 0:00:10.3]} 92. Kd2 {[%clk
0:00:10.9]} 92... Rd4+ {[%clk 0:00:10.4]} 93. Ke1 {[%clk 0:00:10.7]} 93... Rd8
{[%clk 0:00:09.8]} 0-1